[Event "WTCC-50 2018"]
[Site "Radebeul"]
[Date "2018.07.08"]
[Round "2"]
[White "Shabalov, Alexander"]
[Black "Schunk, Thomas"]
[Result "1-0"]
[ECO "B82"]
[WhiteElo "2570"]
[BlackElo "2162"]
[Annotator "ChessBase"]
[PlyCount "85"]
[EventDate "2018.07.07"]
[EventType "team-tourn"]
[EventCountry "GER"]
[SourceTitle "playchess.com"]
[Source "ChessBase"]
[SourceQuality "1"]
[TimeControl "40/5400+30:1800+30"]

1. Nf3 {[%emt 0:00:00]} c5 {[%emt 0:00:00]} 2. e4 {[%emt 0:00:00]} e6 {[%emt 0:02:16]} 3. d4 {[%emt 0:00:10]} cxd4 {[%emt 0:00:07]} 4. Nxd4 {[%emt 0:00:06]} Nf6 {[%emt 0:00:10]} 5. Nc3 {[%emt 0:00:10]} d6 {[%emt 0:00:21]} 6. f4 {[%emt 0:01:44]} a6 {[%emt 0:00:41]} 7. Qf3 {[%emt 0:04:18]} Qc7 {[%emt 0:02:30]} 8. g4 {[%emt 0:02:20]} b5 {[%emt 0:03:36]} 9. g5 {[%emt 0:00:12]} b4 {[%emt 0:00:55]} 10. Ncb5 {[%emt 0:01:53]} axb5 {[%emt 0:01:12]} 11. gxf6 {[%emt 0:00:05]} gxf6 {[%emt 0:07:51]} 12. Bd3 {[%emt 0:13:29]} Bb7 {[%emt 0:03:20]} 13. f5 {[%emt 0:02:42]} e5 {[%emt 0:01:03]} 14. Nxb5 {[%emt 0:00:29]} Qd7 {[%emt 0:01:50]} 15. Be3 {[%emt 0:23:06]} Bc6 {[%emt 0:01:33]} 16. Qe2 {[%emt 0:08:07]} Qb7 {[%emt 0:07:05]} 17. Bf2 {[%emt 0:03:26]} Nd7 {[%emt 0:01:37]} 18. Rg1 {[%emt 0:02:44]} Ra5 {[%emt 0:03:45]} 19. c4 {[%emt 0:00:42]} Nc5 {[%emt 0:11:49]} 20. Bxc5 {[%emt 0:00:06]} dxc5 {[%emt 0:00:05]} 21. b3 {[%emt 0:00:07]} Ra8 {[%emt 0:04:17]} 22. O-O-O {[%emt 0:01:43]} Rd8 {[%emt 0:01:35]} 23. Bc2 {[%emt 0:00:44]} Rd7 {[%emt 0:01:38]} 24. Kb2 {[%emt 0:03:25]} Kd8 {[%emt 0:15:05]} 25. Qh5 {[%emt 0:12:17]} Bxb5 {[%emt 0:02:39]} 26. Qxf7 {[%emt 0:03:15]} Be7 {[%emt 0:01:16]} 27. cxb5 {[%emt 0:00:33]} Rd4 {[%emt 0:00:39]} 28. Rxd4+ {[%emt 0:01:02]} cxd4 {[%emt 0:00:22]} 29. Bd3 {[%emt 0:00:50]} h6 {[%emt 0:04:17]} 30. Rc1 {[%emt 0:00:40]} Rf8 {[%emt 0:00:44]} 31. Qe6 {[%emt 0:00:13]} Qd7 {[%emt 0:01:15]} 32. b6 {[%emt 0:04:10]} Qxe6 {[%emt 0:03:54]} 33. fxe6 {[%emt 0:00:05]} Bd6 {[%emt 0:00:03]} 34. b7 {[%emt 0:00:07]} Ke7 {[%emt 0:00:04]} 35. Rc8 {[%emt 0:00:07]} Rd8 {[%emt 0:00:50]} 36. Kc2 {[%emt 0:00:55]} Bb8 {[%emt 0:01:41]} 37. Kd1 {[%emt 0:00:19]} Ba7 {[%emt 0:01:11]} 38. Ke2 {[%emt 0:00:08]} h5 {[%emt 0:02:50]} 39. Kf3 {[%emt 0:00:13]} Bb8 {[%emt 0:00:06]} 40. Kg2 {[%emt 0:00:14]} Ba7 {[%emt 0:02:18]} 41. Kh3 {[%emt 0:30:14]} f5 {[%emt 0:31:27]} 42. exf5 {[%emt 0:00:12]} e4 {[%emt 0:00:14]} 43. Bxe4 {[%emt 0:00:53]} 1-0

[Event "WTCC-50 2018"]
[Site "Radebeul"]
[Date "2018.07.08"]
[Round "2"]
[White "Plaskett, H James"]
[Black "Page, Mark E"]
[Result "1-0"]
[ECO "E61"]
[WhiteElo "2455"]
[BlackElo "2139"]
[Annotator "ChessBase"]
[PlyCount "59"]
[EventDate "2018.07.07"]
[EventType "team-tourn"]
[EventCountry "GER"]
[SourceTitle "playchess.com"]
[Source "ChessBase"]
[SourceQuality "1"]
[TimeControl "40/5400+30:1800+30"]

1. c4 {[%emt 0:00:00]} Nf6 {[%emt 0:00:00]} 2. Nc3 {[%emt 0:00:22]} g6 {[%emt 0:00:00]} 3. d4 {[%emt 0:01:52]} Bg7 {[%emt 0:00:04]} 4. Nf3 {[%emt 0:03:28]} d6 {[%emt 0:00:25]} 5. Bg5 {[%emt 0:00:16]} Nbd7 {[%emt 0:07:58]} 6. e3 {[%emt 0:01:51]} h6 {[%emt 0:03:21]} 7. Bh4 {[%emt 0:00:03]} O-O {[%emt 0:00:34]} 8. Qc2 {[%emt 0:00:08]} c5 {[%emt 0:01:39]} 9. d5 {[%emt 0:01:05]} Qa5 {[%emt 0:05:43]} 10. Nd2 {[%emt 0:01:17]} a6 {[%emt 0:01:43]} 11. Be2 {[%emt 0:10:24]} Re8 {[%emt 0:12:12]} 12. O-O {[%emt 0:07:49]} Nf8 {[%emt 0:09:15]} 13. a4 {[%emt 0:01:16]} e5 {[%emt 0:16:30]} 14. dxe6 {[%emt 0:13:05]} Bxe6 {[%emt 0:00:43]} 15. Nde4 {[%emt 0:00:15]} Nxe4 {[%emt 0:05:55]} 16. Nxe4 {[%emt 0:01:21]} Bf5 {[%emt 0:04:00]} 17. Bd3 {[%emt 0:00:06]} d5 {[%emt 0:10:15]} 18. Nd6 {[%emt 0:18:06]} Bxd3 {[%emt 0:00:28]} 19. Qxd3 {[%emt 0:00:03]} dxc4 {[%emt 0:00:42]} 20. Qd5 {[%emt 0:00:42]} Re6 {[%emt 0:04:07]} 21. Qxb7 {[%emt 0:08:18]} Rxd6 {[%emt 0:07:12]} 22. Qxa8 {[%emt 0:00:32]} g5 {[%emt 0:01:09]} 23. Bg3 {[%emt 0:00:01]} Rd8 {[%emt 0:00:33]} 24. Qe4 {[%emt 0:07:27]} Bxb2 {[%emt 0:03:21]} 25. Qxc4 {[%emt 0:02:39]} Bxa1 {[%emt 0:01:34]} 26. Rxa1 {[%emt 0:00:02]} Qb4 {[%emt 0:01:01]} 27. Qxa6 {[%emt 0:00:13]} c4 {[%emt 0:00:46]} 28. Be5 {[%emt 0:01:23]} Ne6 {[%emt 0:01:03]} 29. h3 {[%emt 0:01:01]} Qb3 {[%emt 0:01:14]} 30. Qc6 {[%emt 0:02:35]} 1-0

[Event "WTCC-50 2018"]
[Site "Radebeul"]
[Date "2018.07.08"]
[Round "2"]
[White "Enders, Peter"]
[Black "Rewitz, Poul"]
[Result "1/2-1/2"]
[ECO "A01"]
[WhiteElo "2445"]
[BlackElo "2289"]
[Annotator "ChessBase"]
[PlyCount "86"]
[EventDate "2018.07.07"]
[EventType "team-tourn"]
[EventCountry "GER"]
[SourceTitle "playchess.com"]
[Source "ChessBase"]
[SourceQuality "1"]
[TimeControl "40/5400+30:1800+30"]

1. b3 {[%emt 0:00:00]} e5 {[%emt 0:00:04]} 2. Bb2 {[%emt 0:00:00]} Nc6 {[%emt 0:00:23]} 3. e3 {[%emt 0:00:00]} Nf6 {[%emt 0:00:53]} 4. Nf3 {[%emt 0:00:00]} e4 {[%emt 0:01:20]} 5. Nd4 {[%emt 0:00:00]} Nxd4 {[%emt 0:00:53]} 6. Bxd4 {[%emt 0:00:00]} Be7 {[%emt 0:00:48]} 7. d3 {[%emt 0:00:02]} c5 {[%emt 0:01:27]} 8. Bb2 {[%emt 0:00:19]} O-O {[%emt 0:01:14]} 9. Nd2 {[%emt 0:00:32]} d5 {[%emt 0:01:46]} 10. dxe4 {[%emt 0:00:40]} Nxe4 {[%emt 0:01:17]} 11. Nxe4 {[%emt 0:02:08]} dxe4 {[%emt 0:02:51]} 12. Bc4 {[%emt 0:02:24]} Qa5+ {[%emt 0:02:42]} 13. Qd2 {[%emt 0:03:02]} Qxd2+ {[%emt 0:06:32]} 14. Kxd2 {[%emt 0:00:05]} Bg4 {[%emt 0:02:19]} 15. Rag1 {[%emt 0:16:20]} Rad8+ {[%emt 0:08:03]} 16. Kc1 {[%emt 0:00:07]} Be6 {[%emt 0:10:54]} 17. Rd1 {[%emt 0:18:10]} Bxc4 {[%emt 0:09:20]} 18. bxc4 {[%emt 0:00:05]} f5 {[%emt 0:01:10]} 19. Rd5 {[%emt 0:05:28]} Rxd5 {[%emt 0:01:52]} 20. cxd5 {[%emt 0:00:06]} b5 {[%emt 0:00:32]} 21. Be5 {[%emt 0:04:13]} Rd8 {[%emt 0:03:42]} 22. Rd1 {[%emt 0:03:24]} Bd6 {[%emt 0:02:41]} 23. Bxd6 {[%emt 0:02:38]} Rxd6 {[%emt 0:00:06]} 24. Kb2 {[%emt 0:00:10]} Kf7 {[%emt 0:01:32]} 25. a4 {[%emt 0:02:00]} bxa4 {[%emt 0:16:01]} 26. Ka3 {[%emt 0:00:42]} Ke7 {[%emt 0:01:45]} 27. Kxa4 {[%emt 0:02:54]} Rb6 {[%emt 0:00:47]} 28. Ka3 {[%emt 0:09:15]} Kd6 {[%emt 0:02:41]} 29. c4 {[%emt 0:01:15]} Rb4 {[%emt 0:00:49]} 30. Rc1 {[%emt 0:00:07]} g5 {[%emt 0:00:39]} 31. g3 {[%emt 0:03:12]} g4 {[%emt 0:02:32]} 32. Ka2 {[%emt 0:01:46]} Ke5 {[%emt 0:01:22]} 33. Rc3 {[%emt 0:01:18]} Kd6 {[%emt 0:01:55]} 34. Ka1 {[%emt 0:02:02]} Kd7 {[%emt 0:01:08]} 35. Ra3 {[%emt 0:05:06]} Rxc4 {[%emt 0:01:27]} 36. Rxa7+ {[%emt 0:00:07]} Kd6 {[%emt 0:00:18]} 37. Rf7 {[%emt 0:00:13]} Rb4 {[%emt 0:05:18]} 38. Rxf5 {[%emt 0:02:00]} c4 {[%emt 0:02:52]} 39. Rf8 {[%emt 0:00:07]} Rb7 {[%emt 0:04:09]} 40. Rd8+ {[%emt 0:03:55]} Kc5 {[%emt 0:00:10]} 41. d6 {[%emt 0:31:49]} c3 {[%emt 0:13:12]} 42. Rc8+ {[%emt 0:00:00]} Kxd6 {[%emt 0:02:59]} 43. Rxc3 {[%emt 0:00:00]} Ke5 1/2-1/2

[Event "WTCC-50 2018"]
[Site "Radebeul"]
[Date "2018.07.08"]
[Round "2"]
[White "Arkell, Keith C"]
[Black "Fegan, Chris"]
[Result "1-0"]
[ECO "A81"]
[WhiteElo "2406"]
[BlackElo "2040"]
[Annotator "ChessBase"]
[PlyCount "117"]
[EventDate "2018.07.07"]
[EventType "team-tourn"]
[EventCountry "GER"]
[SourceTitle "playchess.com"]
[Source "ChessBase"]
[SourceQuality "1"]
[TimeControl "40/5400+30:1800+30"]

1. d4 {[%emt 0:00:06]} f5 {[%emt 0:00:04]} 2. g3 {[%emt 0:01:39]} Nf6 {[%emt 0:00:37]} 3. Bg2 {[%emt 0:00:08]} g6 {[%emt 0:00:37]} 4. Nh3 {[%emt 0:00:50]} Bg7 {[%emt 0:00:30]} 5. Nf4 {[%emt 0:00:07]} c6 {[%emt 0:05:45]} 6. c4 {[%emt 0:00:44]} Qa5+ {[%emt 0:04:20]} 7. Nc3 {[%emt 0:00:56]} Ne4 {[%emt 0:04:17]} 8. Qd3 {[%emt 0:10:13]} e5 {[%emt 0:08:27]} 9. dxe5 {[%emt 0:00:42]} Nxc3 {[%emt 0:02:30]} 10. Bd2 {[%emt 0:03:26]} Bxe5 {[%emt 0:03:10]} 11. Rc1 {[%emt 0:09:26]} O-O {[%emt 0:12:43]} 12. Bxc3 {[%emt 0:01:29]} Bxc3+ {[%emt 0:02:45]} 13. Qxc3 {[%emt 0:04:16]} Qxc3+ {[%emt 0:02:53]} 14. Rxc3 {[%emt 0:00:05]} Na6 {[%emt 0:01:30]} 15. O-O {[%emt 0:04:21]} Rb8 {[%emt 0:06:26]} 16. a3 {[%emt 0:14:43]} b5 {[%emt 0:05:54]} 17. b4 {[%emt 0:06:28]} bxc4 {[%emt 0:02:53]} 18. Rxc4 {[%emt 0:00:04]} Nc7 {[%emt 0:00:37]} 19. Rc5 {[%emt 0:01:50]} Re8 {[%emt 0:03:17]} 20. e3 {[%emt 0:00:27]} Rb5 {[%emt 0:03:08]} 21. Rfc1 {[%emt 0:00:17]} Re5 {[%emt 0:04:17]} 22. Rxe5 {[%emt 0:00:33]} Rxe5 {[%emt 0:00:07]} 23. Nd3 {[%emt 0:06:32]} Re8 {[%emt 0:05:18]} 24. Nc5 {[%emt 0:00:18]} Ne6 {[%emt 0:02:49]} 25. Nxe6 {[%emt 0:00:16]} Rxe6 {[%emt 0:00:30]} 26. Bd5 {[%emt 0:00:32]} cxd5 {[%emt 0:01:52]} 27. Rxc8+ {[%emt 0:00:09]} Kg7 {[%emt 0:02:21]} 28. Rc7 {[%emt 0:02:24]} Ra6 {[%emt 0:01:16]} 29. Rxd7+ {[%emt 0:00:08]} Kh6 {[%emt 0:00:23]} 30. Rxd5 {[%emt 0:00:10]} Rxa3 {[%emt 0:00:39]} 31. h3 {[%emt 0:08:41]} a6 {[%emt 0:02:42]} 32. Kg2 {[%emt 0:06:53]} Ra4 {[%emt 0:01:50]} 33. Rd4 {[%emt 0:00:04]} a5 {[%emt 0:02:01]} 34. bxa5 {[%emt 0:00:08]} Rxa5 {[%emt 0:00:12]} 35. g4 {[%emt 0:00:04]} Kg5 {[%emt 0:02:52]} 36. Kg3 {[%emt 0:00:25]} h5 {[%emt 0:03:08]} 37. h4+ {[%emt 0:00:19]} Kf6 {[%emt 0:00:55]} 38. gxh5 {[%emt 0:03:42]} gxh5 {[%emt 0:00:09]} 39. Rd6+ {[%emt 0:00:09]} Kg7 {[%emt 0:01:45]} 40. Kf4 {[%emt 0:00:39]} Ra2 {[%emt 0:01:38]} 41. f3 {[%emt 0:31:13]} Rh2 {[%emt 0:01:07]} 42. Kxf5 {[%emt 0:00:00]} Rxh4 {[%emt 0:00:22]} 43. e4 {[%emt 0:00:00]} Rh3 {[%emt 0:01:32]} 44. Rg6+ {[%emt 0:00:00]} Kf7 {[%emt 0:02:07]} 45. f4 {[%emt 0:00:00]} h4 {[%emt 0:01:13]} 46. e5 {[%emt 0:00:00]} Rg3 {[%emt 0:04:40]} 47. Rg4 {[%emt 0:00:00]} Rh3 {[%emt 0:01:48]} 48. e6+ {[%emt 0:00:00]} Ke7 {[%emt 0:01:17]} 49. Rg7+ {[%emt 0:00:00]} Kd6 {[%emt 0:02:31]} 50. Rd7+ {[%emt 0:00:00]} Kc6 {[%emt 0:00:08]} 51. Rd4 {[%emt 0:00:00]} Ra3 {[%emt 0:02:50]} 52. Ke5 {[%emt 0:00:00]} h3 {[%emt 0:03:32]} 53. Rc4+ {[%emt 0:00:00]} Kb5 {[%emt 0:01:37]} 54. Rc2 {[%emt 0:00:00]} Ra8 {[%emt 0:02:19]} 55. e7 {[%emt 0:00:00]} Rh8 {[%emt 0:00:56]} 56. Kf6 {[%emt 0:00:00]} Kb4 {[%emt 0:03:21]} 57. Kg7 {[%emt 0:00:00]} Ra8 {[%emt 0:01:03]} 58. Kf7 {[%emt 0:00:00]} Ra7 {[%emt 0:00:30]} 59. Kf8 {[%emt 0:00:00]} 1-0

[Event "WTCC-50 2018"]
[Site "Radebeul"]
[Date "2018.07.08"]
[Round "2"]
[White "Cummings, David H."]
[Black "Engman, Rikard"]
[Result "1-0"]
[ECO "A10"]
[WhiteElo "2336"]
[BlackElo "2171"]
[Annotator "NA"]
[PlyCount "65"]
[EventDate "2018.07.07"]
[EventType "team-tourn"]
[EventCountry "GER"]
[SourceTitle "playchess.com"]
[Source "ChessBase"]
[SourceQuality "1"]
[TimeControl "40/5400+30:1800+30"]

1. c4 {[%emt 0:00:00]} b6 {[%emt 0:00:00]} 2. Nc3 {[%emt 0:00:00]} Bb7 {[%emt 0:00:00]} 3. e4 {[%emt 0:00:36]} e5 {[%emt 0:00:00]} 4. Nf3 {[%emt 0:02:05]} Nc6 {[%emt 0:00:55]} 5. g3 {[%emt 0:00:31]} Bc5 {[%emt 0:00:12]} 6. Bg2 {[%emt 0:00:11]} Nge7 {[%emt 0:00:18] LiveBook: 4 Games} 7. O-O {[%emt 0:01:34]} O-O {[%emt 0:04:47]} 8. d3 {[%emt 0:00:07]} d6 {[%emt 0:01:27]} 9. a3 {[%emt 0:00:18]} a5 {[%emt 0:07:17]} 10. Bd2 {[%emt 0:02:35]} Nd4 {[%emt 0:21:49]} 11. Rb1 $11 {[%emt 0:05:53]} Nxf3+ {[%emt 0:04:52]} 12. Bxf3 {[%emt 0:00:45]} Nc6 {[%emt 0:03:37]} 13. Bg2 {[%emt 0:11:42]} Qd7 {[%emt 0:07:44]} 14. Kh1 {[%emt 0:06:35]} Nd8 {[%emt 0:11:43]} 15. f4 {[%emt 0:09:17]} exf4 {[%emt 0:00:39]} 16. Bxf4 {[%emt 0:07:16]} Ne6 {[%emt 0:01:13]} 17. Qd2 {[%emt 0:07:44]} Bd4 {[%emt 0:10:27]} 18. Nb5 {[%emt 0:07:48]} Be5 {[%emt 0:07:30]} 19. d4 {[%emt 0:02:46]} Bxf4 {[%emt 0:06:03]} 20. gxf4 {[%emt 0:00:28]} c6 {[%emt 0:03:40]} 21. Nc3 {[%emt 0:00:18]} c5 {[%emt 0:01:13]} 22. d5 {[%emt 0:04:54]} Nd4 {[%emt 0:00:14]} 23. Ne2 {[%emt 0:01:54]} Nxe2 {[%emt 0:00:36]} 24. Qxe2 {[%emt 0:00:05]} Rae8 {[%emt 0:02:33]} 25. Rbe1 {[%emt 0:01:09]} Re7 {[%emt 0:00:28]} 26. Rf3 {[%emt 0:02:09]} Rfe8 {[%emt 0:00:34]} 27. Re3 {[%emt 0:00:20]} b5 {[%emt 0:00:47]} 28. cxb5 {[%emt 0:04:36]} Bxd5 {[%emt 0:00:02]} 29. Qd2 {[%emt 0:00:28]} Bc4 {[%emt 0:01:17]} 30. a4 {[%emt 0:02:28]} f5 {[%emt 0:01:51]} 31. exf5 {[%emt 0:02:10]} Kf8 {[%emt 0:00:36]} 32. Bc6 {[%emt 0:01:36]} Qxf5 {[%emt 0:01:04]} 33. Qxd6 {[%emt 0:02:50]} 1-0

[Event "WTCC-50 2018"]
[Site "Radebeul"]
[Date "2018.07.08"]
[Round "2"]
[White "Schulz, Klaus-Juergen"]
[Black "Wagner Michel, Annett"]
[Result "1-0"]
[ECO "D58"]
[WhiteElo "2324"]
[BlackElo "2119"]
[Annotator "NA"]
[PlyCount "107"]
[EventDate "2018.07.07"]
[EventType "team-tourn"]
[EventCountry "GER"]
[SourceTitle "playchess.com"]
[Source "ChessBase"]
[SourceQuality "1"]
[TimeControl "40/5400+30:1800+30"]

1. d4 {[%emt 0:00:00] Payen,A} d5 {[%emt 0:00:00]} 2. c4 {[%emt 0:00:33]} e6 {[%emt 0:00:00]} 3. Nc3 {[%emt 0:00:25]} Nf6 {[%emt 0:00:06]} 4. Bg5 {[%emt 0:01:20]} Be7 {[%emt 0:00:51]} 5. e3 {[%emt 0:01:03]} h6 {[%emt 0:01:37]} 6. Bh4 {[%emt 0:01:03]} O-O {[%emt 0:00:51]} 7. Nf3 {[%emt 0:03:28]} b6 {[%emt 0:08:04]} 8. Bxf6 {[%emt 0:25:00]} Bxf6 {[%emt 0:00:08]} 9. cxd5 {[%emt 0:00:42]} exd5 {[%emt 0:00:04]} 10. b4 {[%emt 0:00:11]} c5 {[%emt 0:07:28] D58: Damengambit (Tartakower-Variante)} 11. b5 {[%emt 0:12:57]} (11. bxc5 bxc5 12. Qa4 Bd7 13. Bb5 cxd4 14. Nxd4 Bxd4 15. Qxd4 Bxb5 16. Nxb5 Qa5+ 17. Nc3 Nc6 18. Qd2 d4 19. Nd1 dxe3 20. Nxe3 Qa6 21. Qe2 Qa5+ 22. Qd2 Qa6 23. Qe2 {½-½ (23) Karpov,A (2626)-Ljubojevic,L (2571) Platja d'Aro 2017}) 11... Qd6 {[%emt 0:20:12]} 12. Be2 {[%emt 0:04:14]} Be6 $146 {[%emt 0:18:11]} ({Vorgänger:} 12... Bb7 13. O-O Nd7 14. Qc2 Rac8 15. Rac1 Rfe8 16. Rfe1 g6 17. Qa4 Rc7 18. Rc2 {0-1 (67) Manoeuvre,A (2246)-Payen,A (2366) Issy les Moulineaux 2010 EXT 2011 [Payen,A]}) 13. O-O {[%emt 0:00:39]} Nd7 {[%emt 0:01:21]} 14. Qd2 {[%emt 0:06:24]} Rfd8 {[%emt 0:02:09]} 15. Rfd1 {[%emt 0:00:21]} Rac8 {[%emt 0:01:28]} 16. Rac1 {[%emt 0:02:11]} Qe7 {[%emt 0:04:12]} 17. dxc5 {[%emt 0:03:42]} Bxc3 {[%emt 0:01:44]} 18. Qxc3 {[%emt 0:00:55]} Nxc5 {[%emt 0:06:05]} 19. Qa3 {[%emt 0:05:58]} Qb7 {[%emt 0:05:54]} 20. Nd4 {[%emt 0:00:28]} Rd6 {[%emt 0:03:08]} 21. Qb4 {[%emt 0:09:40]} Qd7 {[%emt 0:04:59]} 22. Nc6 {[%emt 0:01:45]} a5 {[%emt 0:02:01]} 23. Qd4 {[%emt 0:01:09]} Qc7 {[%emt 0:02:12]} 24. Bf3 {[%emt 0:00:37]} Kf8 {[%emt 0:03:11]} 25. e4 {[%emt 0:02:29]} dxe4 {[%emt 0:00:55]} 26. Qxd6+ {[%emt 0:00:07]} Qxd6 {[%emt 0:00:02]} 27. Rxd6 {[%emt 0:00:06]} exf3 {[%emt 0:00:04]} 28. a3 {[%emt 0:06:23]} fxg2 {[%emt 0:01:24]} 29. Kxg2 {[%emt 0:01:56]} Ne4 {[%emt 0:00:28]} 30. Rd4 {[%emt 0:00:34]} Nf6 {[%emt 0:00:14]} 31. Rcd1 {[%emt 0:00:24]} g6 {[%emt 0:00:12]} 32. Rd8+ {[%emt 0:00:14]} Rxd8 {[%emt 0:00:06]} 33. Rxd8+ {[%emt 0:00:04]} Kg7 {[%emt 0:00:05]} 34. Rb8 {[%emt 0:00:54]} Nd5 {[%emt 0:00:20]} 35. Nd4 {[%emt 0:01:25]} Kf6 {[%emt 0:00:35]} 36. Kf3 {[%emt 0:00:46]} Ke5 {[%emt 0:00:53]} 37. Nxe6 {[%emt 0:00:53]} fxe6 {[%emt 0:00:33]} 38. Rc8 {[%emt 0:02:30]} h5 {[%emt 0:02:20]} 39. h4 {[%emt 0:00:59]} Kf5 {[%emt 0:00:44]} 40. Rc6 {[%emt 0:02:01]} Ke5 {[%emt 0:02:50]} 41. Kg3 {[%emt 0:06:58]} Kf5 {[%emt 0:00:38]} 42. f4 {[%emt 0:04:05]} Kf6 {[%emt 0:17:55]} 43. Kf3 {[%emt 0:00:37]} Kf5 {[%emt 0:01:39]} 44. Rc8 {[%emt 0:10:34]} Nf6 {[%emt 0:05:33]} 45. Rc1 {[%emt 0:06:08]} Nd5 $18 {[%emt 0:03:16]} 46. Rc6 {[%emt 0:00:28]} e5 {[%emt 0:02:52]} 47. fxe5 {[%emt 0:00:10]} Kxe5 {[%emt 0:00:07]} 48. Rxg6 {[%emt 0:00:07]} Kd4 {[%emt 0:00:21]} 49. Rg5 {[%emt 0:00:35]} Kc4 {[%emt 0:01:11]} 50. Rxh5 {[%emt 0:00:06]} Nc3 {[%emt 0:00:01]} 51. Rf5 {[%emt 0:02:15]} Nxb5 {[%emt 0:00:09]} 52. Rxb5 {[%emt 0:01:08]} Kxb5 {[%emt 0:00:20]} 53. h5 {[%emt 0:00:01]} Ka4 {[%emt 0:00:01]} 54. h6 {[%emt 0:00:13]} 1-0

[Event "WTCC-50 2018"]
[Site "Radebeul"]
[Date "2018.07.08"]
[Round "2"]
[White "Goh, Cheng Hong"]
[Black "Rensch, Toralf"]
[Result "1/2-1/2"]
[ECO "A05"]
[WhiteElo "2323"]
[BlackElo "2088"]
[Annotator "NA"]
[PlyCount "49"]
[EventDate "2018.07.07"]
[EventType "team-tourn"]
[EventCountry "GER"]
[SourceTitle "playchess.com"]
[Source "ChessBase"]
[SourceQuality "1"]
[TimeControl "40/5400+30:1800+30"]

1. Nf3 {[%emt 0:00:00]} Nf6 {[%emt 0:00:00]} 2. g3 {[%emt 0:00:00]} d5 {[%emt 0:00:50]} 3. Bg2 {[%emt 0:00:08]} c6 {[%emt 0:06:25]} 4. O-O {[%emt 0:00:24]} Nbd7 {[%emt 0:02:24] LiveBook: 96 Games} 5. d3 {[%emt 0:01:59]} e6 {[%emt 0:07:13]} 6. Re1 {[%emt 0:02:04]} Be7 {[%emt 0:01:52]} 7. b3 {[%emt 0:02:47]} O-O {[%emt 0:00:24]} 8. Bb2 {[%emt 0:00:16]} a5 {[%emt 0:01:46]} 9. a4 {[%emt 0:02:33]} b5 {[%emt 0:03:35]} 10. Nbd2 {[%emt 0:06:20]} Qb6 {[%emt 0:03:55]} 11. e4 {[%emt 0:07:29]} b4 {[%emt 0:32:40]} 12. h3 {[%emt 0:07:20]} h6 $11 {[%emt 0:04:01]} 13. Qe2 {[%emt 0:16:52]} Bb7 {[%emt 0:09:50]} 14. Rad1 {[%emt 0:05:41]} Rad8 {[%emt 0:03:26]} 15. Nh2 {[%emt 0:03:53]} c5 {[%emt 0:05:49]} 16. e5 {[%emt 0:03:31]} Nh7 {[%emt 0:01:18]} 17. Qg4 {[%emt 0:01:36]} Bc8 {[%emt 0:01:31]} 18. Ndf3 {[%emt 0:07:33]} f5 {[%emt 0:04:19]} 19. Qh5 {[%emt 0:04:41]} Rf7 {[%emt 0:01:18]} 20. Bc1 {[%emt 0:02:01]} Ndf8 {[%emt 0:00:38]} 21. Nh4 {[%emt 0:08:37]} Bd7 {[%emt 0:01:57]} 22. Ng6 {[%emt 0:00:49]} Nxg6 {[%emt 0:00:19]} 23. Qxg6 {[%emt 0:00:03]} Nf8 {[%emt 0:00:03]} 24. Qh5 {[%emt 0:00:29]} Be8 {[%emt 0:00:21]} 25. Qg4 1/2-1/2

[Event "WTCC-50 2018"]
[Site "Radebeul"]
[Date "2018.07.08"]
[Round "2"]
[White "Brueggemann, Joachim"]
[Black "Rewitz, Jan"]
[Result "1-0"]
[ECO "B01"]
[WhiteElo "2293"]
[BlackElo "2055"]
[Annotator "NA"]
[PlyCount "71"]
[EventDate "2018.07.07"]
[EventType "team-tourn"]
[EventCountry "GER"]
[SourceTitle "playchess.com"]
[Source "ChessBase"]
[SourceQuality "1"]
[TimeControl "40/5400+30:1800+30"]

1. e4 {[%emt 0:00:00]} d5 {[%emt 0:00:00]} 2. exd5 {[%emt 0:00:00]} Nf6 {[%emt 0:00:00]} 3. d4 {[%emt 0:00:00]} Nxd5 {[%emt 0:00:01]} 4. c4 {[%emt 0:00:00]} Nb6 {[%emt 0:00:07]} 5. Nf3 {[%emt 0:00:07]} g6 {[%emt 0:00:13]} 6. c5 {[%emt 0:00:36]} Nd5 {[%emt 0:00:31]} 7. Bc4 {[%emt 0:00:05]} Bg7 {[%emt 0:02:57]} 8. Qb3 {[%emt 0:02:36]} c6 {[%emt 0:01:21]} 9. Nc3 {[%emt 0:00:04]} O-O {[%emt 0:01:27] LiveBook: 92 Games} 10. O-O {[%emt 0:01:38]} Nxc3 {[%emt 0:11:49] B01: Scandinavian Defence} 11. bxc3 {[%emt 0:00:04]} h6 {[%emt 0:00:55]} (11... b5 12. cxb6 axb6 13. Re1 b5 14. Bd3 Nd7 15. Ba3 Bf6 16. Nd2 Re8 17. Ne4 Bg7 18. Ng5 e6 19. Ne4 Nf6 20. Bc5 Nxe4 21. Bxe4 {1-0 (50) Perunovic,M (2696)-Roganovic,M (2524) Belgrade 2014}) 12. Re1 {[%emt 0:00:28]} Nd7 {[%emt 0:03:42]} 13. Bf4 {[%emt 0:08:13]} b6 {[%emt 0:00:02]} 14. cxb6 {[%emt 0:02:59]} axb6 $146 {[%emt 0:03:03]} ({Predecessor:} 14... Nxb6 15. Ne5 Qe8 16. Nxg6 e5 17. Nxf8 Nxc4 18. Qxc4 Qxf8 19. Bxe5 Be6 20. Qxc6 Rc8 21. Qf3 f6 22. Bxf6 {1-0 (22) Sokolova,V (2052)-Fokin,A (1858) St Petersburg 2011}) 15. Qc2 {[%emt 0:01:45]} e6 {[%emt 0:12:12]} 16. Qd2 {[%emt 0:12:43]} Kh7 {[%emt 0:02:43]} 17. Bd6 {[%emt 0:02:49]} Re8 {[%emt 0:02:03]} 18. Rad1 {[%emt 0:00:14]} Bb7 {[%emt 0:04:21]} 19. Qf4 {[%emt 0:03:57]} Kg8 {[%emt 0:11:31]} 20. h4 {[%emt 0:01:15]} Qf6 {[%emt 0:13:53]} 21. Qg3 {[%emt 0:02:49]} c5 {[%emt 0:05:32]} 22. Ne5 {[%emt 0:12:33]} Nxe5 23. dxe5 Qf5 {[%emt 0:14:09]} 24. Bd3 {[%emt 0:09:15]} Qh5 {[%emt 0:00:06]} 25. Bb5 {[%emt 0:00:16]} Red8 {[%emt 0:00:36]} 26. a4 {[%emt 0:01:10]} Rac8 {[%emt 0:04:01]} 27. Rb1 {[%emt 0:04:58]} c4 {[%emt 0:04:47]} 28. Rb2 {[%emt 0:03:45]} g5 {[%emt 0:00:29]} 29. hxg5 {[%emt 0:00:35]} Qxg5 {[%emt 0:00:21]} 30. Re3 $16 {[%emt 0:06:32]} Bf8 {[%emt 0:01:19]} 31. Rd2 {[%emt 0:01:50]} Bd5 {[%emt 0:00:18]} 32. Qh3 {[%emt 0:05:48]} Kh7 {[%emt 0:00:17]} 33. Rxd5 {[%emt 0:04:57]} exd5 {[%emt 0:00:04]} 34. Rg3 {[%emt 0:00:05]} Qc1+ {[%emt 0:00:33]} 35. Kh2 {[%emt 0:00:01]} Qc2 {[%emt 0:01:14]} 36. Bd7 {[%emt 0:00:06]} 1-0